fUST/lending_fUST_20240513
["ID","MTS","AMOUNT","RATE_DAILY","PERIOD"]
[326903851,1715551846268,-151.0,0.00038,2]
[326903852,1715551846277,-153.85532515,0.00038108,7]
[326903853,1715551846287,-176.01,0.00039999,2]
[326903854,1715551846296,-193.16942969,0.0004,11]
[326903855,1715551846307,-309.74071762,0.0004,120]
[326903856,1715551846318,-4620.93588364,0.0004,30]
[326903857,1715551855368,894.51331095,0.00020913,2]
[326903858,1715551859035,157.19307999,0.00020913,2]
[326903859,1715551863063,834.20724205,0.00020913,2]
[326903860,1715551864394,282.60809455,0.00020913,2]
[326903861,1715551866979,2011.1578101,0.00020913,2]
[326903862,1715551867196,6946.84771296,0.00020913,2]
[326903863,1715551867670,235.8939695,0.00020913,2]
[326903864,1715551868676,330.43257549,0.00020913,2]
[326903865,1715551869203,538.92800322,0.00020913,2]
[326903866,1715551870439,1624.11883803,0.00020913,2]
[326903867,1715551870766,1882.33843824,0.00020913,2]
[326903868,1715551872938,379.68526739,0.00020913,2]
[326903869,1715551872964,860.02192413,0.00020913,2]
[326903870,1715551873078,3057.36000381,0.00020913,2]
[326903871,1715551874662,227.52273626,0.00020913,2]
[326903872,1715551875262,1347.30375243,0.00020913,2]
[326903873,1715551875433,1093.78568774,0.00020913,2]
[326903874,1715551877310,262.15305828,0.00025,2]
[326903875,1715551877361,120.43811135,0.00020913,2]
[326903876,1715551877387,279.56188865,0.00020913,2]
[326903877,1715551878420,80000.0,0.00020913,2]
[326903878,1715551878527,245.6801007,0.00020913,2]
[326903879,1715551878570,183.9475463,0.00020913,2]
[326903880,1715551878807,1042.0,0.00020913,2]
[326903881,1715551879183,158.20036641,0.00020913,2]
[326903882,1715551880292,340.79875434,0.00020913,2]
[326903883,1715551881878,273.25764425,0.00020913,2]
[326903884,1715551882791,355.25334749,0.00020913,2]
[326903885,1715551882965,5210.0,0.00020913,2]
[326903886,1715551884382,15697.34517274,0.00020913,2]
[326903887,1715551884475,4581.62626985,0.00022948,2]
[326903888,1715551884571,67521.8836984,0.00020913,2]
[326903889,1715551885800,380.05955451,0.00020913,2]
[326903890,1715551886950,5873.0338447,0.00020913,2]
[326903891,1715551888701,641.86376226,0.00020913,2]
[326903892,1715551890869,519.11278913,0.00020913,2]
[326903893,1715551909083,7129.12436457,0.00021,2]
[326903894,1715551929089,4752.74957638,0.00021,2]
[326903895,1715551941033,3509.59012776,0.00020913,2]
[326903896,1715551941234,281.27568752,0.00020913,2]
[326903897,1715551943915,447.34798474,0.00020913,2]
[326903898,1715551945154,3960.62464698,0.00021,2]
[326903899,1715551947148,206.96693214,0.00020913,2]
[326903900,1715551947178,220.69308314,0.00020913,2]
[326903901,1715551949126,158.29939173,0.00020913,2]
[326903902,1715551949844,273.67256523,0.00020913,2]
[326903903,1715551950824,770.26830404,0.00020913,5]
[326903904,1715551951656,236.07687408,0.00020913,2]
[326903905,1715551952828,186.62571484,0.00020913,2]
[326903906,1715551955138,894.8510247,0.00020913,2]
[326903907,1715551957629,189.71214175,0.00020913,2]
[326903908,1715551959319,281.27568752,0.00021,2]
[326903909,1715551962989,4664.67495305,0.00020913,2]
[326903910,1715551963101,2063.48544108,0.00021,2]
[326903911,1715551969054,834.50840127,0.00020913,2]
[326903912,1715551977199,415.99269261,0.00021,2]
[326903913,1715551987056,286.30747096,0.00020913,2]
[326903914,1715551989089,2063.48544108,0.00021,2]
[326903915,1715552011096,2063.48544108,0.00021,2]
[326903916,1715552011191,154.76786057,0.00020913,2]
[326903917,1715552029100,2063.48544108,0.00021,2]
[326903918,1715552045093,2063.48544108,0.00021,2]
[326903919,1715552058536,522.19690124,0.00020913,2]
[326903922,1715552065121,2063.48544108,0.00021,2]
[326903923,1715552071614,166.666666,0.0002288,2]
[326903924,1715552075647,492.31289669,0.00020913,2]
[326903925,1715552082219,689.43337629,0.00020913,2]
[326903926,1715552087101,2063.48544108,0.00021,2]
[326903927,1715552105123,2063.48544108,0.00021,2]
[326903928,1715552116831,175.983526,0.00022961,2]
[326903929,1715552123109,2063.48544108,0.00021,2]
[326903930,1715552136618,157.27710398,0.00020913,2]
[326903931,1715552139111,2063.48544108,0.00021,2]
[326903932,1715552159112,2063.48544108,0.00021,2]
[326903933,1715552179118,1065.40803001,0.00021,2]
[326903934,1715552208852,346.97520054,0.00020913,2]
[326903935,1715552268818,279.81654273,0.00020913,7]
[326903936,1715552323725,284.32906716,0.00020913,2]
[326903937,1715552388467,631.41143464,0.00020913,2]
[326903938,1715552408355,640.90356419,0.00022428,2]
[326903939,1715552464398,155.82787014,0.00020913,2]
[326903940,1715552477384,1001.1062598,0.00022892,2]
[326903941,1715552523711,376.65300901,0.00020913,2]
[326903942,1715552584270,166.666666,0.00022521,2]
[326903943,1715552585934,624.25106707,0.00020913,2]
[326903945,1715552674028,200.0,0.00022957,2]
[326903946,1715552681203,158.22736457,0.00020913,2]
[326903947,1715552700698,330.15085178,0.00020913,2]
[326903948,1715552728902,6384.0,0.00023,10]
[326903949,1715552777146,157.22766132,0.00020913,2]
[326903950,1715552835957,155.08229322,0.00020913,2]
[326903951,1715552838080,886.58681229,0.000209,2]
[326903952,1715552873213,206.84585849,0.00020913,2]
[326903953,1715552897505,194.1642929,0.00020913,2]
[326903954,1715552904642,409.89041285,0.00020913,2]
[326903955,1715552953130,-387.470181,0.00023018,2]
[326903956,1715552953150,-500.435071,0.00023052,2]
[326903957,1715552953171,-24900.0,0.00023216,2]
[326903958,1715552953191,-942.1730376,0.00023462,2]
[326903959,1715552953210,-621.04517821,0.00023549,2]
[326903960,1715552953230,-168.862106,0.00023562,2]
[326903961,1715552953250,-160.0,0.0002382,2]
[326903962,1715552953271,-166.666666,0.00024055,2]
[326903963,1715552953412,-460.30156366,0.00024368,2]
[326903964,1715552953433,-380.0,0.00024658,2]
[326903965,1715552953455,-200.0,0.00024658,15]
[326903966,1715552953475,-620.05225891,0.00024727,2]
[326903967,1715552953498,-1074.12982307,0.000249,2]
[326903968,1715552953519,-309.42756595,0.00025,2]
[326903969,1715552953541,-10615.15949594,0.00025,2]
[326903970,1715552953562,-167.20514148,0.00025,2]
[326903971,1715552953582,-154.7215013,0.00025,2]
[326903972,1715552953604,-400.28835833,0.00025,2]
[326903973,1715552971235,154.76784823,0.00020913,2]
[326903974,1715552986483,154.7215013,0.00025,2]
[326903975,1715553004442,209.67235114,0.00025,2]
[326903976,1715553009942,16376.37521388,0.00024676,2]
[326903977,1715553029791,163.510231,0.00023562,2]
[326903978,1715553030559,280.59869427,0.00020913,2]
[326904000,1715553032351,-907.44942013,0.00024676,2]
[326904001,1715553032363,-959.20663359,0.00024676,2]
[326904002,1715553032374,-6656.9687324,0.00024676,2]
[326904003,1715553032384,-166.666666,0.0002559,2]
[326904004,1715553032393,-886.58681229,0.000259,2]
[326904005,1715553032402,-620.00261295,0.00025963,2]
[326904006,1715553032413,-154.7215013,0.0002739,2]
[326904007,1715553032422,-986.32325271,0.00027424,2]
[326904008,1715553032432,-220.95865965,0.00028,2]
[326904009,1715553032441,-6933.01849963,0.0003,2]
[326904010,1715553032451,-258.62805437,0.00032,4]
[326904011,1715553032462,-10689.38493145,0.00034,5]
[326904012,1715553032472,-500.435071,0.00034578,2]
[326904013,1715553032481,-168.862106,0.00034904,2]
[326904014,1715553032491,-210.48268909,0.00035,4]
[326904015,1715553032500,-939.25383044,0.000356,30]
[326904016,1715553032510,-1776.21579671,0.00037,2]
[326904017,1715553032520,-153.85532515,0.00038728,7]
[326904018,1715553032530,-153.85532515,0.00038881,7]
[326904019,1715553032539,-1682.28,0.0003939,3]
[326904020,1715553032549,-267.73860817,0.00039399,15]
[326904021,1715553032558,-214.57686814,0.00039399,15]
[326904022,1715553032568,-500.0,0.00039399,15]
[326904023,1715553032578,-404.33622466,0.00039399,15]
[326904024,1715553032588,-500.0,0.00039399,15]
[326904025,1715553032598,-500.0,0.00039399,15]
[326904026,1715553032608,-210.03474199,0.00039399,15]
[326904027,1715553032620,-86.49170007,0.00039399,15]
[326904028,1715553032630,-500.0,0.00039399,15]
[326904029,1715553032639,-595.56029833,0.00039399,15]
[326904030,1715553032648,-616.97248434,0.00039399,15]
[326904031,1715553032657,-500.0,0.00039399,15]
[326904032,1715553032667,-500.0,0.00039399,15]
[326904033,1715553032676,-3676.20413608,0.000394,11]
[326904034,1715553032686,-11659.3811128,0.000394,2]
[326904088,1715553038404,-500.0,0.00029999,2]
[326904091,1715553038413,-500.0,0.00029999,2]
[326904094,1715553038424,-500.0,0.00029999,2]
[326904097,1715553038433,-500.0,0.00029999,2]
[326904100,1715553038442,-500.0,0.00029999,2]
[326904102,1715553038452,-500.0,0.00029999,2]
[326904104,1715553038461,-501.9507498,0.00029999,2]
[326904106,1715553038470,-500.0,0.00029999,2]
[326904108,1715553038479,-500.0,0.00029999,2]
[326904110,1715553038488,-500.0,0.00029999,2]
[326904112,1715553038497,-500.0,0.00029999,2]
[326904114,1715553038506,-500.0,0.00029999,2]
[326904117,1715553038516,-500.0,0.00029999,2]
[326904119,1715553038525,-500.0,0.00029999,2]
[326904121,1715553038534,-500.0,0.00029999,2]
[326904122,1715553038544,-500.0,0.00029999,2]
[326904125,1715553038554,-500.0,0.00029999,2]
[326904126,1715553038563,-500.0,0.00029999,2]
[326904129,1715553038572,-500.0,0.00029999,2]
[326904131,1715553038581,-500.0,0.00029999,2]
[326904133,1715553038591,-500.0,0.00029999,2]
[326904135,1715553038600,-585.23177215,0.00029999,2]
[326904137,1715553038609,-500.0,0.00029999,2]
[326904139,1715553038619,-500.0,0.00029999,2]
[326904141,1715553038628,-386.90317362,0.00029999,2]
[326904143,1715553038637,-500.0,0.00029999,2]
[326904145,1715553038646,-500.0,0.00029999,2]
[326904146,1715553038655,-500.0,0.00029999,2]
[326904148,1715553038665,-500.0,0.00029999,2]
[326904149,1715553038674,-500.0,0.00029999,2]
[326904150,1715553038683,-500.0,0.00029999,2]
[326904152,1715553038693,-498.42979439,0.00029999,2]
[326904154,1715553038706,-500.0,0.00029999,2]
[326904156,1715553038715,-500.0,0.00029999,2]
[326904158,1715553038725,-500.0,0.00029999,2]
[326904160,1715553038734,-500.0,0.00029999,2]
[326904162,1715553038745,-500.0,0.00029999,2]
[326904164,1715553038755,-500.0,0.00029999,2]
[326904166,1715553038764,-500.0,0.00029999,2]
[326904168,1715553038774,-500.0,0.00029999,2]
[326904170,1715553038783,-500.0,0.00029999,2]
[326904172,1715553038793,-500.0,0.00029999,2]
[326904174,1715553038802,-500.0,0.00029999,2]
[326904176,1715553038811,-500.0,0.00029999,2]
[326904178,1715553038820,-346.66719748,0.00029999,2]
[326904344,1715553040618,-153.33280252,0.00029999,2]
[326904346,1715553040627,-500.0,0.00029999,2]
[326904348,1715553040637,-520.0,0.00029999,2]
[326904350,1715553040647,-500.0,0.00029999,2]
[326904352,1715553040656,-500.0,0.00029999,2]
[326904354,1715553040665,-500.0,0.00029999,2]
[326904356,1715553040675,-215.48669709,0.00029999,2]
[326904570,1715553043440,-139.51330291,0.00029999,2]
[326904572,1715553043450,-500.0,0.00029999,2]
[326904574,1715553043459,-500.0,0.00029999,2]
[326904575,1715553043469,-500.0,0.00029999,2]
[326904577,1715553043479,-1401.9,0.0003939,3]
[326904579,1715553043488,-12844.54098477,0.000394,2]
[326904582,1715553043500,-485.04784071,0.000394,2]
[326904601,1715553043683,-95890.5001408,0.000394,2]
[326904603,1715553043692,-258.41869748,0.00039599,3]
[326904605,1715553043705,-281.0,0.000399,15]
[326904607,1715553043715,-3000.0,0.00039999,10]
[326904609,1715553043724,-3000.0,0.00039999,10]
[326904611,1715553043733,-3000.0,0.00039999,10]
[326904613,1715553043743,-3000.0,0.00039999,10]
[326904615,1715553043752,-3000.0,0.00039999,10]
[326904617,1715553043761,-3000.0,0.00039999,10]
[326904619,1715553043770,-15158.20233259,0.0004,30]
[326904621,1715553043779,-16013.3614392,0.0004,15]
[326904623,1715553043790,-309.74071762,0.0004,120]
[326904625,1715553043800,-151.0,0.0004,2]
[326904626,1715553043810,-151.0,0.0004,2]
[326904628,1715553043820,-151.0,0.0004,2]
[326904630,1715553043830,-151.0,0.0004,2]
[326904632,1715553043840,-1010.520883,0.0004,2]
[326904634,1715553043849,-1010.520883,0.0004,2]
[326904636,1715553043858,-625.598612,0.0004,2]
[326904638,1715553043867,-625.598612,0.0004,2]
[326904640,1715553043876,-800.862083,0.0004,2]
[326904642,1715553043885,-800.862083,0.0004,2]
[326904644,1715553043894,-151.0,0.0004,2]
[326904646,1715553043904,-178.4326555,0.00041096,2]
[326904648,1715553043913,-735.76060645,0.000419,39]
[326904650,1715553043924,-859.46890756,0.000419,39]
[326904652,1715553043933,-859.46890749,0.000419,39]
[326904654,1715553043942,-859.46890749,0.000419,39]
[326904656,1715553043952,-859.46890749,0.000419,39]
[326904658,1715553043961,-859.46890749,0.000419,39]
[326904660,1715553043970,-859.46890749,0.000419,39]
[326904662,1715553043980,-859.46890749,0.000419,39]
[326904664,1715553043989,-859.46890749,0.000419,39]
[326904666,1715553043998,-859.46890749,0.000419,39]
[326904668,1715553044012,-859.46890749,0.000419,39]
[326904670,1715553044021,-276.23960187,0.000419,39]
[326904672,1715553044030,-151.0,0.000419,7]
[326904674,1715553044040,-151.0,0.000419,7]
[326904676,1715553044049,-217.602876,0.000419,7]
[326904678,1715553044058,-217.602876,0.000419,7]
[326904680,1715553044067,-151.0,0.000419,7]
[326904682,1715553044077,-151.0,0.000419,7]
[326904684,1715553044086,-206.758543,0.000419,7]
[326904686,1715553044095,-151.0,0.000419,7]
[326904688,1715553044105,-167.01352,0.00042466,2]
[326904690,1715553044114,-13511.60110068,0.000428,5]
[326904692,1715553044123,-151.0,0.000429,7]
[326904694,1715553044133,-190.526451,0.000429,7]
[326904696,1715553044145,-151.903811,0.000429,7]
[326904698,1715553044155,-151.0,0.000429,7]
[326904700,1715553044164,-1010.520883,0.000429,7]
[326904702,1715553044174,-1010.520883,0.000429,7]
[326904704,1715553044183,-625.598612,0.000429,7]
[326904706,1715553044191,-625.598612,0.000429,7]
[326904708,1715553044201,-217.602876,0.000429,7]
[326904710,1715553044210,-217.602876,0.000429,7]
[326904712,1715553044219,-800.862083,0.000429,7]
[326904714,1715553044228,-800.862083,0.000429,7]
[326904716,1715553044237,-151.0,0.000429,7]
[326904718,1715553044247,-151.0,0.000429,7]
[326904720,1715553044256,-151.0,0.000429,7]
[326904722,1715553044266,-196.052353,0.000429,7]
[326904724,1715553044275,-706.446608,0.000429,7]
[326904726,1715553044284,-706.446608,0.000429,7]
[326904728,1715553044293,-151.0,0.000429,7]
[326904730,1715553044302,-151.0,0.000429,7]
[326904732,1715553044311,-151.0,0.000429,7]
[326904734,1715553044320,-151.0,0.000429,7]
[326904736,1715553044329,-151.0,0.000429,7]
[326904738,1715553044338,-151.0,0.000429,7]
[326904740,1715553044349,-151.0,0.000429,7]
[326904742,1715553044358,-385.226611,0.000429,7]
[326904744,1715553044367,-385.226611,0.000429,7]
[326904746,1715553044376,-3213.892948,0.000429,7]
[326904748,1715553044385,-3213.892948,0.000429,7]
[326904750,1715553044394,-207.131917,0.000429,7]
[326904752,1715553044403,-207.131917,0.000429,7]
[326904754,1715553044412,-151.0,0.000429,7]
[326904756,1715553044422,-1547.198702,0.000429,7]
[326904758,1715553044433,-1547.198702,0.000429,7]
[326904760,1715553044442,-151.0,0.000429,7]
[326904762,1715553044452,-151.0,0.000429,7]
[326904763,1715553044460,-151.0,0.000429,7]
[326904765,1715553044470,-151.0,0.000429,7]
[326904767,1715553044479,-160.361513,0.000429,7]
[326904769,1715553044488,-3462.971359,0.000429,7]
[326904771,1715553044497,-3462.971359,0.000429,7]
[326904773,1715553044506,-297.930043,0.000429,7]
[326904775,1715553044515,-297.930043,0.000429,7]
[326904777,1715553044525,-151.377895,0.000429,7]
[326904788,1715553044613,-996.85927,0.000429,7]
[326904790,1715553044622,-956.90650837,0.000429,7]
[326904956,1715553046321,-39.95276163,0.000429,7]
[326904958,1715553046330,-25206.3464678,0.00043,2]
[326904960,1715553046339,-706.446608,0.00043,7]
[326904962,1715553046348,-706.446608,0.00043,7]
[326904964,1715553046357,-151.0,0.00043,7]
[326904966,1715553046366,-151.0,0.00043,7]
[326904968,1715553046375,-151.0,0.00043,7]
[326904970,1715553046385,-151.0,0.00043,7]
[326904972,1715553046394,-151.0,0.00043,7]
[326904973,1715553046403,-385.226611,0.00043,7]
[326904976,1715553046414,-385.226611,0.00043,7]
[326904978,1715553046424,-3213.892948,0.00043,7]
[326904979,1715553046433,-1203.45295546,0.00043,7]
[326904983,1715553046453,-2010.43999254,0.00043,7]
[326904985,1715553046462,-207.131917,0.00043,7]
[326904987,1715553046471,-207.131917,0.00043,7]
[326904989,1715553046480,-151.0,0.00043,7]
[326904991,1715553046489,-1547.198702,0.00043,7]
[326904993,1715553046498,-1547.198702,0.00043,7]
[326904995,1715553046507,-151.0,0.00043,7]
[326904996,1715553046516,-151.0,0.00043,7]
[326904999,1715553046525,-151.0,0.00043,7]
[326905001,1715553046534,-151.0,0.00043,7]
[326905003,1715553046543,-3462.971359,0.00043,7]
[326905004,1715553046552,-1851.72741046,0.00043,7]
[326905007,1715553046564,-746.779422,0.00043,7]
[326905087,1715553047378,-714.14784375,0.00043,7]
[326905278,1715553068797,18176.2654395,0.00020913,2]
[326905279,1715553068821,18825.59495864,0.00020913,2]
[326905280,1715553073467,470.68505052,0.00020913,2]
[326905281,1715553073580,155.27698082,0.00020913,2]
[326905282,1715553073959,303.36773969,0.00020913,2]
[326905283,1715553074052,185.81629862,0.00020913,2]
[326905284,1715553074840,3457.70192986,0.00020913,2]
[326905285,1715553075033,1882.33843824,0.00020913,2]
[326905286,1715553075153,816.97434546,0.00020913,2]
[326905287,1715553076634,474.21464437,0.00020913,2]
[326905288,1715553076777,330.43257549,0.00020913,2]
[326905289,1715553076947,1676.30195278,0.00020913,2]
[326905290,1715553080578,15683.13964121,0.00020913,2]
[326905291,1715553081017,186.38755187,0.00020913,2]
[326905292,1715553081916,155.44708054,0.00020913,2]
[326905293,1715553081954,7.54908905,0.00020913,2]
[326905294,1715553081976,566.90092287,0.00020913,2]
[326905295,1715553085887,168.88983771,0.00020913,2]
[326905296,1715553086142,191.38112735,0.00020913,2]
[326905297,1715553086637,303.67284012,0.00020913,2]
[326905298,1715553087174,28989.66231986,0.00020913,2]
[326905299,1715553087364,160.86156897,0.00020913,2]
[326905300,1715553087404,4423.41111546,0.00020913,2]
[326905301,1715553088264,5229.71545665,0.00022,2]
[326905302,1715553090849,260.5,0.00020913,2]
[326905303,1715553091940,155.09257999,0.00020913,2]
[326905304,1715553096163,159.4535182,0.00022,2]
[326905305,1715553098453,154.7215013,9.999e-05,2]
[326905306,1715553114433,248.61759147,0.00020913,2]
[326905308,1715553150142,154.7215013,0.00022,2]
[326905309,1715553154988,186.62571484,0.00020913,2]
[326905310,1715553155933,527.71870107,0.00020913,2]
[326905311,1715553158769,444.10107647,0.00020913,2]
[326905312,1715553160002,273.52788847,0.00020913,2]
[326905313,1715553160195,2055.13425939,0.00020913,2]
[326905314,1715553164866,255.83174585,0.00020913,2]
[326905315,1715553167328,154.7215013,0.00020913,2]
[326905316,1715553168768,6144.32584484,0.00020913,2]
[326905317,1715553175390,894.51331095,0.00020913,2]
[326905318,1715553187259,214.49977688,0.00020913,2]
[326905319,1715553188913,713.0309286,0.00019,2]
[326905321,1715553223356,238.51524987,0.00020913,2]
[326905323,1715553276094,286.32439961,0.00020913,2]
[326905328,1715553347666,380.99762848,0.00020913,2]
[326905329,1715553359419,225.0,0.00021918,2]
[326905330,1715553390459,237.01181108,0.00021,2]
[326905331,1715553390715,52549.46809101,0.0002,2]
[326905332,1715553415522,391.84991645,0.000203,2]
[326905333,1715553417035,2948.4579046,0.0002,2]
[326905334,1715553417070,17904.77163151,0.0002,2]
[326905335,1715553429542,11120.86059351,0.00020497,2]
[326905336,1715553436080,197.58977894,0.00021,2]
[326905337,1715553436123,10027.81535376,0.00021,2]
[326905339,1715553438313,4242.28047057,0.0002,2]
[326905340,1715553439056,23734.94709541,0.0002,2]
[326905341,1715553439093,29445.50834722,0.0002,2]
[326905342,1715553637825,24900.0,0.00019919,2]
[326905343,1715553732750,200.0,0.0002,2]
[326905344,1715553859727,-215.486697,0.00020288,2]
[326905345,1715553905193,408.809369,0.00019871,2]
[326905346,1715553917001,405.7809347,0.00019871,2]
[326905347,1715553959642,3000.0,0.00019871,2]
[326905348,1715553972581,250.0,0.00019871,2]
[326905349,1715553992964,1001.4962799,0.00019871,2]
[326905352,1715554020803,302.39532113,0.0002,2]
[326905353,1715554043975,3152.68421057,0.000189,2]
[326905355,1715554077404,175.983526,0.00019597,2]
[326905356,1715554088016,5485.7956276,0.00019871,2]
[326905357,1715554133202,15533.6620344,0.00019919,2]
[326905358,1715554149303,-202.3475656,0.00020079,2]
[326905359,1715554149326,-29.7147018,0.00020288,2]
[326905360,1715554149348,-164.44993123,0.00020644,2]
[326905361,1715554149369,-237.77738276,0.00020912,2]
[326905362,1715554149390,-309.81670716,0.00020912,2]
[326905363,1715554149410,-692.44962681,0.00020912,2]
[326905364,1715554149435,-285.95327221,0.00020912,2]
[326905365,1715554149455,-233.28470073,0.00020913,2]
[326905366,1715554149476,-175.460498,0.00020939,2]
[326905367,1715554149498,-164.44993123,0.00021579,2]
[326905368,1715554149521,-166.666666,0.00021918,2]
[326905369,1715554149542,-7333.3452744,0.00021918,2]
[326905370,1715554149678,-166.666666,0.00022431,2]
[326905371,1715554149700,-164.44993123,0.00022513,2]
[326905372,1715554149722,-551.72919921,0.00022899,2]
[326905373,1715554149744,-8153.54087038,0.000229,2]
[326905374,1715554149765,-500.0,0.00022941,2]
[326905375,1715554149788,-500.0,0.00022941,2]
[326905376,1715554149811,-500.0,0.00022941,2]
[326905377,1715554149834,-500.0,0.00022941,2]
[326905378,1715554149855,-500.0,0.00022941,2]
[326905379,1715554149876,-500.0,0.00022941,2]
[326905380,1715554149898,-402.0,0.00022941,2]
[326905381,1715554149920,-500.0,0.00022941,2]
[326905382,1715554149944,-500.0,0.00022941,2]
[326905383,1715554149964,-500.0,0.00022941,2]
[326905384,1715554149985,-500.0,0.00022941,2]
[326905385,1715554150006,-500.0,0.00022941,2]
[326905386,1715554150028,-500.0,0.00022941,2]
[326905387,1715554150052,-500.0,0.00022941,2]
[326905388,1715554150074,-500.0,0.00022941,2]
[326905389,1715554150094,-500.0,0.00022941,2]
[326905390,1715554150116,-500.0,0.00022941,2]
[326905391,1715554150139,-500.0,0.00022941,2]
[326905392,1715554150163,-500.0,0.00022941,2]
[326905393,1715554150185,-500.0,0.00022941,2]
[326905394,1715554150205,-500.0,0.00022941,2]
[326905395,1715554150227,-585.30117631,0.00022941,2]
[326905396,1715554150248,-500.0,0.00022941,2]
[326905397,1715554150270,-500.0,0.00022941,2]
[326905398,1715554150291,-500.0,0.00022941,2]
[326905399,1715554150312,-576.89772594,0.00022941,2]
[326905400,1715554150333,-500.0,0.00022941,2]
[326905401,1715554150356,-500.0,0.00022941,2]
[326905402,1715554150377,-500.0,0.00022941,2]
[326905403,1715554150398,-500.0,0.00022941,2]
[326905404,1715554150420,-500.0,0.00022941,2]
[326905405,1715554150446,-500.0,0.00022941,2]
[326905406,1715554150466,-500.0,0.00022941,2]
[326905407,1715554150488,-500.0,0.00022941,2]
[326905408,1715554150523,-500.0,0.00022941,2]
[326905409,1715554150546,-347.04635443,0.00022941,2]
[326905410,1715554150569,-500.0,0.00022941,2]
[326905411,1715554150594,-500.0,0.00022941,2]
[326905412,1715554150619,-500.0,0.00022941,2]
[326905413,1715554150646,-500.0,0.00022941,2]
[326905414,1715554150671,-381.19031736,0.00022941,2]
[326905415,1715554150696,-500.0,0.00022941,2]
[326905416,1715554150721,-500.0,0.00022941,2]
[326905417,1715554150745,-500.0,0.00022941,2]
[326905418,1715554150770,-500.0,0.00022941,2]
[326905419,1715554150794,-500.0,0.00022941,2]
[326905420,1715554150819,-500.0,0.00022941,2]
[326905421,1715554150843,-500.0,0.00022941,2]
[326905422,1715554150866,-166.666666,0.00022944,2]
[326905423,1715554150888,-154.78330338,0.00023,2]
[326905424,1715554150911,-164.44993123,0.00023448,2]
[326905425,1715554150935,-166.666666,0.00023456,2]
[326905426,1715554150962,-161.598308,0.00023562,2]
[326905427,1715554150984,-166.393047,0.00023562,2]
[326905428,1715554151006,-3152.68421057,0.000239,2]
[326905429,1715554151028,-166.666666,0.00023969,2]
[326905430,1715554151050,-700.41592475,0.00024,2]
[326905432,1715554172103,-164.44993123,0.00024382,2]
[326905433,1715554172124,-16750.87422204,0.000244,2]
[326905434,1715554172146,-166.666666,0.00024482,2]
[326905435,1715554172166,-380.0,0.00024658,2]
[326905436,1715554172186,-247.77581428,0.000248,2]
[326905437,1715554172307,-237.27617957,0.00024811,2]
[326905438,1715554172328,-620.00455688,0.00024951,2]
[326905439,1715554172348,-154.75239617,0.00025,2]
[326905440,1715554172366,-154.7215013,0.00025,2]
[326905441,1715554172386,-167.10326178,0.00025,2]
[326905442,1715554172406,-400.10978683,0.00025,2]
[326905443,1715554172426,-154.7215013,0.00025,2]
[326905444,1715554172449,-1839.23538939,0.00025,2]
[326905445,1715554172468,-1018.37987598,0.00025,2]
[326905446,1715554205759,154.76784206,0.00025,2]
[326905447,1715554210361,2851.9306106,0.00020913,2]
[326905448,1715554210845,208.72073891,0.00025,2]
[326905449,1715554213340,8876.48249675,0.00020913,2]
[326905450,1715554213363,8014.43403473,0.00020913,2]
[326905451,1715554213390,5163.40975751,0.00020913,2]